[Event "New York Spring IM-C 2022"]
[Site "New York"]
[Date "2022.04.16"]
[Round "3.3"]
[White "Dolgitser, Konstantin"]
[Black "Singh, Hersh"]
[Result "1/2-1/2"]
[ECO "D38"]
[WhiteElo "2199"]
[BlackElo "2084"]
[Annotator "TA"]
[PlyCount "150"]
[EventDate "2022.04.14"]
[EventType "tourn"]
[EventCountry "USA"]
[SourceTitle "playchess.com"]
[Source "ChessBase"]
[SourceQuality "1"]
[TimeControl "5400+30"]

{[%evp 12,150,18,18,31,10,26,11,9,17,18,0,39,39,27,28,30,36,45,31,25,25,29,42,29,0,37,24,52,52,105,111,97,97,135,127,178,177,213,156,212,196,210,177,166,181,171,157,170,170,178,145,200,200,183,139,144,153,152,99,99,99,99,99,99,99,99,99,105,28,127,28,28,28,28,0,81,0,28,28,29,7,7,6,6,6,8,21,30,14,29,36,36,36,95,103,104,104,5893,5840,5475,2052,4967,4133,2112,696,2800,2322,2227,1767,1105,988,1862,6,6,6,6,6,6,6,6,0,0,0,0,0,0,0,0,0,0,0,0,0,0,0,0,0,0,0,0]} 1. d4 {[%emt 0:00:02]} Nf6 {[%emt 0:00:04]} 2. Nf3 {[%emt 0:00:10]} d5 {[%emt 0:00:05]} 3. c4 {[%emt 0:00:16]} e6 {[%emt 0:00:06]} 4. Nc3 {[%emt 0:00:11]} Bb4 {[%emt 0:00:07]} 5. cxd5 {[%emt 0:01:03]} exd5 {[%emt 0:00:07]} 6. Bg5 {[%emt 0:00:26][%cal Bc1g5,Bg5h4,Bh4g3][%mdl 32]} h6 {[%emt 0:01:35]} 7. Bh4 {[%emt 0:00:08]} Nbd7 {[%emt 0:02:13] 7...Bf5 is setting a new trend. D38: Queen's Gambit Declined: Ragozin Defence (4 Nf3 Bb4).} 8. e3 {[%emt 0:02:24]} g5 {[%emt 0:02:24]} 9. Bg3 {[%emt 0:00:06]} Ne4 $1 {[%emt 0:00:20]} 10. Qb3 {[%emt 0:02:08]} c5 {[%emt 0:07:44]} 11. dxc5 {[%emt 0:00:41]} Qa5 {[%emt 0:03:15]} (11... Bxc3+ $5 12. bxc3 Ndxc5 $11) 12. a3 $1 {[%emt 0:04:37]} Bxc3+ {[%emt 0:01:57]} 13. bxc3 {[%emt 0:00:07] [#]} Ndxc5 $146 {[%emt 0:06:25]} ({Predecessor:} 13... O-O 14. Qb4 Qxc5 15. Qxc5 Ndxc5 16. Nd4 Bd7 17. c4 dxc4 18. Bxc4 Rac8 19. O-O Nd2 {½-½ (30) Ganguly,S (2648)-Yu,Y (2736) Doha 2015}) 14. Qb4 {[%emt 0:06:05]} Qd8 {[%emt 0:02:43]} 15. Bb5+ {[%emt 0:10:37]} Bd7 {[%emt 0:00:56]} 16. Ne5 {[%emt 0:01:18]} O-O {[%emt 0:03:57]} 17. Nxd7 {[%emt 0:01:52]} Nxd7 {[%emt 0:00:52] Pair of Knights!} 18. O-O {[%emt 0:00:54]} Ndc5 {[%emt 0:08:14]} 19. Be5 {[%emt 0:04:34]} a5 {[%emt 0:05:22]} 20. Qb2 {[%emt 0:02:53] aiming for Rad1.} Nd6 {[%emt 0:03:11]} (20... Rc8 $14) 21. Rfd1 {[%emt 0:04:37]} Nxb5 {[%emt 0:14:11]} 22. Qxb5 {[%emt 0:00:11]} Re8 {[%emt 0:04:12]} 23. Bd4 {[%emt 0:02:22] 0x0.00138d2c057ddp-1022s more active pieces.} Ne4 {[%emt 0:01:33]} (23... Ne6 $16 24. Qxb7 Nxd4 25. Rxd4 Qc8 26. Qxd5 Qxc3) 24. f3 $36 {[%emt 0:05:07][%mdl 2048] White is really pushing.} ({Don't take} 24. Qxb7 $6 Rb8 25. Qc6 Re6 $16) 24... Nf6 {[%emt 0:05:27]} 25. Qxb7 {[%emt 0:00:19]} Rb8 {[%emt 0:00:18]} (25... Qd6 $16 26. Qb5 a4) 26. Qa6 {[%emt 0:00:11]} Re6 {[%emt 0:00:06]} 27. Qe2 {[%emt 0:02:55]} Nd7 {[%emt 0:02:10]} 28. c4 {[%emt 0:04:23]} dxc4 {[%emt 0:00:57]} 29. Qxc4 {[%emt 0:01:49]} Rc8 {[%emt 0:01:40]} 30. Qb5 {[%emt 0:06:51]} Rec6 {[%emt 0:03:07]} 31. Ra2 {[%emt 0:09:58]} Rc1 {[%emt 0:00:40]} (31... Qc7 $16 {was called for.} 32. Qf5 Nf8) 32. Rad2 {[%emt 0:00:08]} Qc7 {[%emt 0:04:12]} 33. Bb2 {[%emt 0:05:06]} Rxd1+ {[%emt 0:00:18]} 34. Rxd1 {[%emt 0:00:01]} Rb8 {[%emt 0:00:58]} 35. Rxd7 {[%emt 0:01:29]} Rxb5 $16 {[%emt 0:00:16]} 36. Rxc7 {[%emt 0:00:05]} Rxb2 {[%emt 0:00:01][%mdl 4096] Endgame KR-KR} 37. Rc5 {[%emt 0:00:15]} Rb3 {[%emt 0:00:04]} 38. Rxa5 {[%emt 0:00:06] Strongly threatening Kf2.} Rxe3 {[%emt 0:00:03]} 39. Kf2 {[%emt 0:00:24]} Rb3 {[%emt 0:00:01]} 40. a4 {[%emt 0:03:52]} (40. g4 $16) 40... Ra3 {[%emt 0:00:02] [#]} (40... Rb2+ $11 {remains equal.} 41. Kg3 Ra2) 41. Kg3 {[%emt 0:00:56]} (41. g4 $1 $16) 41... Ra2 $11 {[%emt 0:00:08]} 42. Ra6 {[%emt 0:00:52]} Kg7 {[%emt 0:00:02]} 43. Ra5 {[%emt 0:00:08]} (43. a5 $11) 43... Kg8 $16 {[%emt 0:00:58] [#]} 44. Ra6 {[%emt 0:00:52]} ({Better is} 44. f4 $1 $16 {[%cal Rf4g5]}) 44... Kg7 $11 {[%emt 0:00:02]} 45. Ra8 {[%emt 0:02:08]} h5 {[%emt 0:02:07]} 46. h4 {[%emt 0:02:49]} gxh4+ {[%emt 0:00:29]} 47. Kxh4 {[%emt 0:00:21]} Rxg2 {[%emt 0:00:06]} 48. Kxh5 {[%emt 0:00:16]} Kf6 {[%emt 0:01:17]} 49. Ra5 {[%emt 0:00:19]} Rg3 {[%emt 0:08:39]} 50. f4 {[%emt 0:00:09]} Ra3 {[%emt 0:00:30]} 51. Kg4 {[%emt 0:00:17]} Kg6 {[%emt 0:01:00]} 52. Rg5+ {[%emt 0:00:34]} Kf6 {[%emt 0:00:03]} ({Black should try} 52... Kh6 $14) 53. a5 {[%emt 0:00:26]} Ra1 {[%emt 0:01:36]} 54. Rb5 {[%emt 0:00:41]} Kg7 $2 {[%emt 0:00:28][%mdl 8192]} (54... Ra4 $16 55. Rb6+ Kg7) 55. Kf5 $18 {[%emt 0:00:28]} Re1 {[%emt 0:01:50]} 56. Re5 {[%emt 0:00:50]} (56. Rb6 $142 Ra1 57. a6) 56... Ra1 {[%emt 0:00:09]} 57. Rd5 {[%emt 0:01:05]} Re1 {[%emt 0:00:04]} 58. Rc5 {[%emt 0:03:22]} (58. Rb5 $142 Re2 59. Rc5) 58... Re2 {[%emt 0:00:22]} 59. a6 {[%emt 0:00:07]} Ra2 {[%emt 0:00:02]} 60. Rc6 {[%emt 0:00:07] Black must now prevent Ke5.} Ra5+ {[%emt 0:00:03]} 61. Ke4 {[%emt 0:00:07] Hoping for Kd4.} f6 {[%emt 0:00:22]} 62. Rc7+ $2 {[%emt 0:00:55]} (62. Kd3 $18 {Kc4 is the strong threat.} Ra4 63. Kc3 Rxf4 64. Kb3) 62... Kh6 $11 {[%emt 0:00:42] The position is equal.} 63. a7 {[%emt 0:00:20]} f5+ {[%emt 0:01:28]} 64. Ke3 {[%emt 0:04:19]} Ra4 {[%emt 0:01:26]} 65. Kd3 {[%emt 0:00:24]} Kh5 {[%emt 0:00:33]} 66. Kc3 {[%emt 0:00:38]} Kg4 {[%emt 0:00:11]} 67. Kb3 {[%emt 0:00:53]} Ra1 {[%emt 0:00:03]} 68. Rh7 {[%emt 0:01:18]} Ra6 {[%emt 0:01:00]} 69. Kb4 {[%emt 0:00:15]} Ra2 {[%emt 0:01:19]} 70. Kb5 {[%emt 0:00:23]} Ra1 {[%emt 0:00:10]} 71. Rc7 {[%emt 0:03:15]} Ra2 {[%emt 0:00:04]} 72. Kb6 {[%emt 0:01:38]} Kxf4 {[%emt 0:00:07]} 73. Rc5 {[%emt 0:00:31] White threatens Ra5 and mate.} Rxa7 $1 {[%emt 0:00:16]} 74. Kxa7 {[%emt 0:00:04]} Ke4 {[%emt 0:00:04]} 75. Rc8 {[%emt 0:00:44]} f4 {[%emt 0:08:27] Black defended with fortune.  Weighted Error Value: White=0.28 (precise) /Black=0.17 (very precise)} 1/2-1/2

[Event "New York Spring IM-C 2022"]
[Site "New York"]
[Date "2022.04.16"]
[Round "3.4"]
[White "Antova, Gabriela"]
[Black "Ngo, Bach"]
[Result "1/2-1/2"]
[ECO "D24"]
[WhiteElo "2304"]
[BlackElo "2306"]
[Annotator "TA"]
[PlyCount "53"]
[EventDate "2022.04.14"]
[EventType "tourn"]
[EventCountry "USA"]
[SourceTitle "playchess.com"]
[Source "ChessBase"]
[SourceQuality "1"]
[TimeControl "5400+30"]

{[%evp 9,53,22,25,0,0,0,0,0,0,0,0,0,0,-6,0,0,21,0,97,106,91,24,15,16,22,15,10,17,18,14,14,11,22,34,31,27,36,10,21,0,0,0,0,-3,-8,-2]} 1. d4 {[%emt 0:00:03]} Nf6 {[%emt 0:00:05]} 2. c4 {[%emt 0:00:05]} e6 {[%emt 0:00:09]} 3. Nf3 {[%emt 0:00:08]} d5 {[%emt 0:00:18]} 4. Nc3 {[%emt 0:00:14]} dxc4 {[%emt 0:00:19]} 5. e4 {[%emt 0:00:16]} Bb4 {[%emt 0:00:14]} 6. Bxc4 {[%emt 0:00:08] D24: Queen's Gambit Accepted: 3 Nf3 Nf6 4 Nc3.} Nxe4 {[%emt 0:00:11]} 7. O-O {[%emt 0:00:08]} Nxc3 {[%emt 0:00:05]} 8. bxc3 {[%emt 0:00:07]} (8. Qb3 Nd5 9. Bxd5 Qxd5 $17) 8... Be7 {[%emt 0:00:05]} 9. Qe2 {[%emt 0:00:39]} O-O {[%emt 0:00:19]} 10. Rd1 {[%emt 0:00:32]} Nd7 {[%emt 0:00:10]} 11. Rd3 {[%emt 0:00:50]} c5 {[%emt 0:00:09] [#]} 12. Bf4 $146 {[%emt 0:00:29] Prevents Qc7.} ({Predecessor:} 12. d5 e5 13. Nxe5 Nxe5 14. Qxe5 Bd6 15. Qh5 Re8 16. Re3 Bd7 17. Bd3 g6 18. Qf3 {½-½ (34) Tomashevsky,E (2702)-Inarkiev,E (2693) Konya 2019}) 12... cxd4 {[%emt 0:03:54]} 13. Nxd4 {[%emt 0:04:55][%cal Bf3d4,Bd4f5,Bf5d6][%mdl 32]} e5 {[%emt 0:04:00]} (13... Qb6 $1 $11) 14. Nf5 $1 $16 {[%emt 0:12:14]} ({Don't play} 14. Bxe5 Nxe5 15. Qxe5 Bf6 $11) 14... Bf6 {[%emt 0:03:19] [#]} 15. Bc1 {[%emt 0:06:30] &Bianco is much more active. The black rooks are badly placed.} (15. Bh6 $1 $16 {[%cal Of5g7] And now Nxg7! would win.} gxh6 (15... Kh8 16. Rad1) 16. Nxh6+ Kh8 17. Qh5 (17. Nxf7+ Rxf7 18. Bxf7 Qe7 $17)) 15... e4 $1 $11 {[%emt 0:13:57]} 16. Qxe4 {[%emt 0:09:10] aiming for Rh3.} Qe8 $1 {[%emt 0:11:31]} 17. Nd6 {[%emt 0:07:52][%csl LRb7,LRe8]} Qxe4 {[%emt 0:01:10]} 18. Nxe4 {[%emt 0:00:03] Threatens to win with Ba3.} Be7 {[%emt 0:00:54] Against Ba3} 19. Bf4 {[%emt 0:04:09] Inhibits Ne5.} Nb6 {[%emt 0:00:34]} 20. Bb3 {[%emt 0:01:19]} Bf5 {[%emt 0:01:20]} 21. Re3 {[%emt 0:03:31]} Bxe4 {[%emt 0:07:51]} 22. Rxe4 {[%emt 0:00:07]} Bf6 {[%emt 0:00:07]} 23. Rc1 {[%emt 0:02:22]} Rac8 {[%emt 0:00:12] The position is equal.} 24. c4 {[%emt 0:02:13]} Nd7 {[%emt 0:02:11]} 25. Bd6 {[%emt 0:07:53]} Nc5 {[%emt 0:00:19]} 26. Bxc5 {[%emt 0:08:32]} Rxc5 {[%emt 0:00:32]} 27. Rd1 {[%emt 0:00:11] Weighted Error Value: White=0.08 (flawless) /Black=0.10 (very precise)} 1/2-1/2

[Event "New York Spring IM-C 2022"]
[Site "New York"]
[Date "2022.04.16"]
[Round "3.5"]
[White "Jakovljevic, Vlado"]
[Black "Umayan, Vincent"]
[Result "1-0"]
[ECO "B39"]
[WhiteElo "2352"]
[BlackElo "2043"]
[Annotator "TA"]
[PlyCount "71"]
[EventDate "2022.04.14"]
[EventType "tourn"]
[EventCountry "USA"]
[SourceTitle "playchess.com"]
[Source "ChessBase"]
[SourceQuality "1"]
[TimeControl "5400+30"]

{[%evp 22,71,51,36,43,43,78,84,79,75,196,195,195,195,241,194,197,172,184,164,178,159,171,158,160,149,121,137,201,195,192,187,218,222,253,260,286,280,270,281,277,286,282,273,311,296,428,426,456,270,325,277]} 1. Nf3 {[%emt 0:00:21]} Nf6 {[%emt 0:00:24]} 2. c4 {[%emt 0:00:06]} c5 {[%emt 0:01:19]} 3. Nc3 {[%emt 0:00:26]} Nc6 {[%emt 0:02:52]} 4. d4 {[%emt 0:00:31]} cxd4 {[%emt 0:00:21]} 5. Nxd4 {[%emt 0:00:05]} g6 {[%emt 0:06:45]} 6. e4 {[%emt 0:01:35]} Bg7 {[%emt 0:00:53]} 7. Be3 {[%emt 0:00:15]} Ng4 {[%emt 0:06:15]} 8. Qxg4 {[%emt 0:00:14]} Nxd4 {[%emt 0:00:09]} 9. Qd1 {[%emt 0:00:05]} e5 {[%emt 0:01:28]} 10. Bd3 {[%emt 0:02:25]} d6 {[%emt 0:03:26]} 11. O-O {[%emt 0:00:16]} O-O {[%emt 0:00:03]} 12. Ne2 {[%emt 0:05:12]} Be6 {[%emt 0:05:12] B39: Sicilian: Maroczy Bind with 5...Bg7 and 7...Ng4.} 13. Qd2 {[%emt 0:04:46]} Qd7 {[%emt 0:05:13]} 14. Nxd4 {[%emt 0:06:18]} exd4 {[%emt 0:01:08] [#] White is better.} 15. Bh6 {[%emt 0:00:02] [#]} Bh8 $146 {[%emt 0:17:44]} (15... Bxh6 $16 16. Qxh6 a6) ({Predecessor:} 15... Bxh6 16. Qxh6 a6 17. Qd2 b5 18. cxb5 axb5 19. a3 Rfc8 20. f4 f5 21. exf5 Bxf5 {1-0 (42) Schmidt,G (2363)-Juergens,K (2183) Austria 2005}) 16. Bxf8 $18 {[%emt 0:01:40]} Rxf8 {[%emt 0:00:26]} 17. f4 {[%emt 0:01:10]} Rc8 {[%emt 0:02:43]} (17... Qe7 $142 18. b3 Bf6) 18. b3 {[%emt 0:02:12] Hoping for f5.} Qd8 {[%emt 0:07:07]} 19. Qf2 {[%emt 0:01:42] Black must now prevent f5.} Bd7 {[%emt 0:05:01]} 20. Rae1 {[%emt 0:05:27]} Bg7 {[%emt 0:11:22]} 21. Kh1 {[%emt 0:00:55]} a5 {[%emt 0:01:05]} 22. e5 dxe5 {[%emt 0:00:30]} 23. fxe5 Be6 {[%emt 0:00:30]} 24. Re4 Qg5 {[%emt 0:00:30]} (24... a4 $16 25. bxa4 (25. Rxd4 Qc7 $16) 25... Qa5) 25. Qxd4 Rd8 {[%emt 0:00:30]} 26. Qe3 Qe7 {[%emt 0:00:30]} 27. Rd4 Ra8 {[%emt 0:00:30]} 28. Be2 a4 {[%emt 0:00:30]} 29. Bg4 axb3 {[%emt 0:00:30]} 30. axb3 Bxg4 {[%emt 0:00:30]} 31. Rxg4 Bxe5 {[%emt 0:00:30]} 32. Re4 {[%cal Bg4e4,Be4d4,Bd4d5][%mdl 32]} f6 {[%emt 0:00:30] [#]} 33. Rd4 $1 {[%mdl 512] Against Qd7} Qc7 {[%emt 0:00:30]} (33... Re8 $142 34. Rd5 Qe6) (33... Qe6 34. Rd5) 34. Rd5 Rf8 {[%emt 0:00:30]} 35. g3 (35. Rfd1 $142 {Rd7 is the strong threat.} Ra8 36. Qh3) 35... Qc8 {[%emt 0:00:30] Prevents Rd7.} 36. Qf3 {Weighted Error Value: White=0.15 (very precise) /Black=0.27 (precise)} 1-0

[Event "New York Spring IM-C 2022"]
[Site "New York"]
[Date "2022.04.16"]
[Round "4.1"]
[White "Lee, Justin"]
[Black "Umayan, Vincent"]
[Result "1/2-1/2"]
[ECO "E20"]
[WhiteElo "2104"]
[BlackElo "2043"]
[Annotator "TA"]
[PlyCount "62"]
[EventDate "2022.04.14"]
[EventType "tourn"]
[EventCountry "USA"]
[SourceTitle "playchess.com"]
[Source "ChessBase"]
[SourceQuality "1"]
[TimeControl "5400+30"]

{[%evp 14,62,28,25,34,33,21,35,22,22,14,2,0,0,7,-12,-19,-38,-40,-70,-66,-44,-42,-54,-51,-38,-20,-27,-16,-26,-21,-21,-20,-28,-12,-10,-3,-2,-27,-25,-40,-65,-63,-66,-68,-69,-67,-68,-72,-105,-71]} 1. d4 {[%emt 0:00:03]} Nf6 {[%emt 0:00:31]} 2. c4 {[%emt 0:00:08]} e6 {[%emt 0:00:30]} 3. Nc3 {[%emt 0:00:11]} Bb4 {[%emt 0:01:22]} 4. f3 {[%emt 0:00:11]} c5 {[%emt 0:04:12]} 5. d5 {[%emt 0:00:12]} d6 {[%emt 0:00:52]} 6. e4 {[%emt 0:00:36]} O-O {[%emt 0:01:00]} 7. Nge2 {[%emt 0:00:51]} exd5 {[%emt 0:06:27]} 8. cxd5 {[%emt 0:00:12]} Nbd7 {[%emt 0:01:09][%cal Bb8d7,Bd7e5,Be5g6,Bg6f8,Bf8h7][%mdl 32] E20: Nimzo-Indian: 4 g3 and 4 f3.} 9. Ng3 {[%emt 0:01:26] Inhibits Nh5.} Re8 {[%emt 0:01:04]} 10. Be2 {[%emt 0:00:44]} Ne5 {[%emt 0:05:20] White is slightly better.} 11. O-O {[%emt 0:00:32]} Bd7 {[%emt 0:04:17]} 12. f4 {[%emt 0:11:28]} Ng6 {[%emt 0:05:47]} 13. f5 {[%emt 0:00:45]} Nf8 {[%emt 0:02:43]} 14. Bg5 {[%emt 0:04:14] [#] Threatens to win with Nh5.} h6 {[%emt 0:01:54] [#]} 15. Bh4 $146 {[%emt 0:00:59]} ({Predecessor:} 15. Bf4 Qc7 16. Qd3 N8h7 17. Kh1 Ng5 18. h4 c4 19. Qc2 Ngh7 20. a3 Bc5 21. Nh5 Nxh5 22. Bxh5 {0-1 (36) Van Schyndel,A (1956)-Weseman,G (1987) ICCF email 2009}) 15... N8h7 {[%emt 0:05:31]} 16. Qc1 {[%emt 0:16:24]} c4 {[%emt 0:10:01]} 17. Bxc4 {[%emt 0:15:31]} Rc8 {[%emt 0:23:52]} 18. Be2 {[%emt 0:08:16]} Qb6+ {[%emt 0:02:12]} 19. Kh1 {[%emt 0:00:18]} Bxc3 {[%emt 0:21:16]} (19... Qd4 {looks sharper.} 20. Bxf6 Nxf6 21. Qf4 Qe5) 20. bxc3 {[%emt 0:00:08]} Nxe4 {[%emt 0:00:00]} 21. Nxe4 {[%emt 0:01:05]} Rxe4 {[%emt 0:00:00]} 22. Bf2 {[%emt 0:00:20]} Qa5 {[%emt 0:00:00]} 23. Bd3 {[%emt 0:03:29] A strong pair of Bishops.} Re5 {[%emt 0:00:00]} 24. Bd4 {[%emt 0:01:09]} Qxd5 {[%emt 0:00:00][%cal Rd7f5]} 25. Bxe5 {[%emt 0:03:50]} dxe5 {[%emt 0:00:00][%cal Bd6e5,Be5e4][%mdl 32]} 26. Qc2 {[%emt 0:01:42]} Nf6 {[%emt 0:00:00][%mdl 1024] Black has compensation.} 27. Rfe1 {[%emt 0:06:29] Against e4} Bc6 {[%emt 0:00:00]} 28. Rad1 {[%emt 0:00:47][%cal Od3e4]} Qc5 {[%emt 0:00:00] [#] White must now prevent ...Ng4.} 29. Qe2 {[%emt 0:02:02] Against Ng4} e4 {[%emt 0:00:00]} 30. Bc4 {[%emt 0:02:11]} Qxf5 {[%emt 0:00:00]} 31. Rf1 {[%emt 0:19:47]} Qg5 {[%emt 0:06:00] Weighted Error Value: White=0.07 (flawless) /Black=0.02 (flawless)} 1/2-1/2

[Event "New York Spring IM-C 2022"]
[Site "New York"]
[Date "2022.04.16"]
[Round "4.2"]
[White "Ngo, Bach"]
[Black "Jakovljevic, Vlado"]
[Result "1/2-1/2"]
[ECO "D45"]
[WhiteElo "2306"]
[BlackElo "2352"]
[Annotator "TA"]
[PlyCount "177"]
[EventDate "2022.04.14"]
[EventType "tourn"]
[EventCountry "USA"]
[SourceTitle "playchess.com"]
[Source "ChessBase"]
[SourceQuality "1"]
[TimeControl "5400+30"]

{[%evp 54,177,0,0,6,7,9,0,0,0,0,0,0,0,8,8,8,0,0,0,0,0,0,0,0,0,0,0,0,0,0,0,0,0,0,0,0,0,0,0,0,0,0,0,0,0,0,0,0,0,0,0,0,0,0,0,0,0,0,0,0,0,0,0,0,0,0,0,0,0,0,0,0,0,0,0,0,0,0,0,0,0,0,0,0,0,0,0,0,0,0,0,0,0,0,0,0,0,0,0,0,0,0,0,0,0,0,0,0,0,0,0,0,0,0,0,0,0,0,0,0,0,0,0,0,0]} 1. d4 {[%emt 0:00:04]} d5 {[%emt 0:02:56]} 2. Nf3 {[%emt 0:00:10]} Nf6 {[%emt 0:00:08]} 3. c4 {[%emt 0:00:14]} e6 {[%emt 0:01:58]} 4. Nc3 {[%emt 0:00:14]} c6 {[%emt 0:00:55]} 5. e3 {[%emt 0:00:14]} Nbd7 {[%emt 0:01:22]} 6. Qc2 {[%emt 0:00:20]} Bd6 {[%emt 0:01:34]} 7. b3 {[%emt 0:00:17]} O-O {[%emt 0:00:44]} 8. Be2 {[%emt 0:00:11]} b6 {[%emt 0:01:08]} 9. O-O {[%emt 0:00:25]} Bb7 {[%emt 0:00:19]} 10. Bb2 {[%emt 0:00:09]} Qe7 {[%emt 0:01:32]} 11. Rad1 {[%emt 0:00:22]} Rad8 {[%emt 0:00:50]} 12. Rfe1 {[%emt 0:00:17]} Rfe8 {[%emt 0:01:07]} 13. g3 {[%emt 0:00:13]} Bb4 {[%emt 0:01:29]} 14. a3 {[%emt 0:00:11]} Bxc3 {[%emt 0:01:48]} 15. Qxc3 {[%emt 0:00:37]} c5 {[%emt 0:01:20]} 16. Nd2 {[%emt 0:00:21]} Rc8 {[%emt 0:02:27]} 17. Bf3 {[%emt 0:00:34]} Red8 {[%emt 0:02:39]} 18. Rc1 {[%emt 0:05:37]} Ba6 {[%emt 0:10:56]} 19. Red1 {[%emt 0:24:43]} cxd4 {[%emt 0:14:40]} 20. exd4 {[%emt 0:00:37]} dxc4 {[%emt 0:00:33]} 21. bxc4 {[%emt 0:00:08]} Bxc4 {[%emt 0:01:55]} 22. Nxc4 {[%emt 0:00:19]} b5 {[%emt 0:00:01]} 23. Qb3 {[%emt 0:19:12]} bxc4 {[%emt 0:01:03]} 24. Rxc4 {[%emt 0:00:07]} Rxc4 {[%emt 0:02:22]} 25. Qxc4 {[%emt 0:00:07]} Nb6 {[%emt 0:00:08]} 26. Qc5 {[%emt 0:00:29]} Qd7 {[%emt 0:01:14]} 27. Bc6 {[%emt 0:01:46]} Qc7 {[%emt 0:01:16]} 28. Rc1 {[%emt 0:00:23]} Rc8 {[%emt 0:04:45]} 29. a4 {[%emt 0:04:07]} Qd8 {[%emt 0:03:33]} 30. Qe5 {[%emt 0:04:17]} Nbd5 {[%emt 0:02:16]} 31. Bb5 {[%emt 0:01:51]} h6 {[%emt 0:14:14]} 32. Qe1 {[%emt 0:03:41]} Rc7 {[%emt 0:01:55]} 33. Ba3 {[%emt 0:01:23]} Qc8 {[%emt 0:03:53]} 34. Rxc7 {[%emt 0:04:41]} Qxc7 {[%emt 0:00:04]} 35. Qe5 {[%emt 0:02:04]} Qc2 {[%emt 0:01:54]} 36. Qe2 $1 {[%emt 0:02:34]} ({Much weaker is} 36. Qb8+ Kh7 37. Bf1 (37. Qxa7 $2 Ng4 $19) 37... Ne4 $17) 36... Qxe2 {[%emt 0:04:36]} 37. Bxe2 {[%emt 0:00:15]} Nc3 {[%emt 0:00:07]} 38. Bb5 {[%emt 0:00:11]} Nxb5 {[%emt 0:00:21]} 39. axb5 {[%emt 0:00:06]} Nd5 {[%emt 0:00:04]} 40. Bc5 {[%emt 0:00:40]} Nc3 {[%emt 0:00:04]} 41. Bxa7 {[%emt 0:00:17]} Nxb5 {[%emt 0:00:02]} 42. Bc5 {[%emt 0:00:36]} f5 {[%emt 0:01:35]} 43. f3 {[%emt 0:00:30]} h5 {[%emt 0:01:40]} 44. Kf2 {[%emt 0:00:20]} Kf7 {[%emt 0:01:54]} 45. Ke3 {[%emt 0:01:01]} Nc7 {[%emt 0:00:22]} 46. Bd6 {[%emt 0:00:49]} Nd5+ {[%emt 0:00:06]} 47. Kd3 {[%emt 0:01:01]} g6 {[%emt 0:01:52]} 48. Be5 {[%emt 0:00:29]} Ke7 {[%emt 0:00:14]} 49. h3 {[%emt 0:04:22]} Kd7 {[%emt 0:00:39]} 50. h4 {[%emt 0:03:33]} Kc6 {[%emt 0:00:39]} 51. Bb8 {[%emt 0:00:24]} Ne7 {[%emt 0:06:06]} 52. Kc4 {[%emt 0:01:36]} Nd5 {[%emt 0:01:57]} 53. Kd3 {[%emt 0:00:12]} Kd7 {[%emt 0:00:44]} 54. Be5 {[%emt 0:00:24]} Ke7 {[%emt 0:00:33]} 55. Kc4 {[%emt 0:01:02]} Kf7 {[%emt 0:01:33]} 56. Kd3 {[%emt 0:00:20]} Kf8 {[%emt 0:00:38]} 57. Kc4 {[%emt 0:00:15]} Kg8 {[%emt 0:00:15]} 58. Kd3 {[%emt 0:01:13]} Kh7 {[%emt 0:00:05]} 59. Kc4 {[%emt 0:00:06]} Kg8 {[%emt 0:01:55]} 60. Kd3 {[%emt 0:00:12]} Kf7 {[%emt 0:00:13]} 61. Kc4 {[%emt 0:00:28]} (61. Bf4 $5) 61... Ke7 {[%emt 0:00:02]} 62. Kd3 {[%emt 0:00:15]} Nb4+ {[%emt 0:00:25]} 63. Ke3 {[%emt 0:00:44]} Nc6 {[%emt 0:01:07]} 64. Kf4 {[%emt 0:00:21]} Kf7 {[%emt 0:00:15]} 65. Ke3 {[%emt 0:00:30]} Ne7 {[%emt 0:00:29]} 66. Kd3 {[%emt 0:00:21]} Ke8 {[%emt 0:00:40]} 67. Bd6 {[%emt 0:00:47]} Nc6 {[%emt 0:00:33]} 68. Ke3 {[%emt 0:00:28]} Nd8 {[%emt 0:01:05]} 69. Be5 {[%emt 0:01:35]} Nf7 {[%emt 0:00:24]} 70. Bf6 {[%emt 0:02:19]} Nd6 {[%emt 0:00:17]} 71. Be5 {[%emt 0:00:13]} Nb5 {[%emt 0:00:31]} 72. Kd3 {[%emt 0:00:20]} Kd7 {[%emt 0:00:19]} 73. Ke3 {[%emt 0:01:12]} Nc3 {[%emt 0:00:21]} 74. Kf4 {[%emt 0:01:06]} Ke7 {[%emt 0:00:11]} 75. g4 {[%emt 0:00:37]} fxg4 {[%emt 0:01:03]} 76. fxg4 {[%emt 0:00:08]} hxg4 {[%emt 0:00:20]} 77. Kxg4 {[%emt 0:00:07]} Kf7 {[%emt 0:00:24]} 78. Kf3 {[%emt 0:00:49]} Nd5 {[%emt 0:00:09]} 79. Kg4 {[%emt 0:00:10]} Ne3+ {[%emt 0:01:16]} 80. Kg5 {[%emt 0:00:26]} Nd5 {[%emt 0:00:33]} 81. Kg4 {[%emt 0:00:14]} Ne7 {[%emt 0:00:34]} 82. h5 {[%emt 0:00:26]} gxh5+ {[%emt 0:00:21]} 83. Kxh5 {[%emt 0:00:13]} Nd5 {[%emt 0:00:11]} 84. Kg5 {[%emt 0:00:08]} Ke7 {[%emt 0:00:05]} 85. Kg6 {[%emt 0:00:16]} Kd7 {[%emt 0:00:09]} 86. Kf7 {[%emt 0:00:15]} Nb4 {[%emt 0:00:14]} 87. Kf6 {[%emt 0:00:21]} Nc6 {[%emt 0:00:46]} 88. Kf7 {[%emt 0:00:08]} Nb4 {[%emt 0:00:27]} 89. Kf6 {[%emt 0:00:22]} 1/2-1/2